fUST/lending_fUST_20241127
["ID","MTS","AMOUNT","RATE_DAILY","PERIOD"]
[343474502,1732650640960,-500.0,0.00029469,3]
[343474504,1732650640969,-2340.53,0.00029469,3]
[343474506,1732650640979,-2340.53,0.00029469,3]
[343474508,1732650640990,-2340.53,0.00029469,3]
[343474510,1732650641000,-2340.53,0.00029469,3]
[343474512,1732650641010,-733.61,0.00029469,3]
[343474514,1732650641019,-733.61,0.00029469,3]
[343474516,1732650641029,-733.61,0.00029469,3]
[343474518,1732650641038,-733.61,0.00029469,3]
[343474520,1732650641048,-90814.50460368,0.0002947,2]
[343474522,1732650641057,-1565.92,0.000295,2]
[343474524,1732650641067,-210.914,0.00029535,2]
[343474526,1732650641076,-150.0,0.00029535,2]
[343474528,1732650641086,-150.0,0.00029535,2]
[343474530,1732650641096,-2340.53,0.00029567,3]
[343474532,1732650641109,-733.61,0.00029567,3]
[343474533,1732650641118,-2038.27,0.00029568,3]
[343474535,1732650641129,-173.73565147,0.000296,2]
[343474537,1732650641140,-151.0,0.00029601,7]
[343474539,1732650641149,-2038.27,0.00029629,3]
[343474541,1732650641158,-2500.0,0.00029629,3]
[343474543,1732650641168,-173.73565147,0.00029637,2]
[343474545,1732650641178,-2500.0,0.00029638,3]
[343474547,1732650641188,-1375.40234587,0.00029647,12]
[343474549,1732650641197,-380.5,0.00029671,3]
[343474551,1732650641207,-173.73565147,0.00029675,2]
[343474553,1732650641217,-2340.53,0.00029696,3]
[343474555,1732650641226,-733.61,0.00029696,3]
[343474557,1732650641235,-2038.27,0.00029697,3]
[343474559,1732650641245,-2038.27,0.00029697,3]
[343474561,1732650641255,-2340.53,0.00029697,3]
[343474563,1732650641264,-2340.53,0.00029697,3]
[343474565,1732650641273,-733.61,0.00029697,3]
[343474567,1732650641283,-733.61,0.00029697,3]
[343474569,1732650641293,-310.65796141,0.00029698,2]
[343474571,1732650641303,-2038.27,0.00029698,3]
[343474573,1732650641314,-2038.27,0.00029698,3]
[343474575,1732650641323,-2038.27,0.00029698,3]
[343474577,1732650641333,-2038.27,0.00029698,3]
[343474579,1732650641343,-2038.27,0.00029698,3]
[343474581,1732650641352,-2038.27,0.00029698,3]
[343474583,1732650641364,-2038.27,0.00029698,3]
[343474585,1732650641374,-2038.27,0.00029698,3]
[343474587,1732650641383,-2038.27,0.00029698,3]
[343474588,1732650641392,-2038.45514119,0.00029698,3]
[343474590,1732650641402,-2340.53,0.00029698,3]
[343474592,1732650641412,-2340.53,0.00029698,3]
[343474595,1732650641424,-2340.53,0.00029698,3]
[343474597,1732650641434,-2340.53,0.00029698,3]
[343474599,1732650641443,-2340.53,0.00029698,3]
[343474601,1732650641453,-2340.53,0.00029698,3]
[343474603,1732650641462,-2340.53,0.00029698,3]
[343474605,1732650641472,-2340.53,0.00029698,3]
[343474607,1732650641482,-2340.71,0.00029698,3]
[343474609,1732650641492,-733.61,0.00029698,3]
[343474611,1732650641501,-733.61,0.00029698,3]
[343474613,1732650641512,-733.61,0.00029698,3]
[343474614,1732650641523,-733.61,0.00029698,3]
[343474616,1732650641533,-733.61,0.00029698,3]
[343474618,1732650641543,-733.61,0.00029698,3]
[343474620,1732650641553,-733.61,0.00029698,3]
[343474622,1732650641562,-733.61,0.00029698,3]
[343474625,1732650641572,-733.62149642,0.00029698,3]
[343474626,1732650641583,-666.0,0.00029698,2]
[343474628,1732650641596,-222000.0,0.00029699,2]
[343474630,1732650641607,-162.9,0.000297,2]
[343474632,1732650641617,-173.73565147,0.00029712,2]
[343474634,1732650641626,-277.11064645,0.00029749,2]
[343474636,1732650641635,-173.73565147,0.00029749,2]
[343474637,1732650641644,-502.59408877,0.00029776,11]
[343474639,1732650641653,-3606.34527947,0.00029798,2]
[343474641,1732650641663,-151.0,0.00029799,7]
[343474642,1732650641673,-199.71,0.00029799,10]
[343474643,1732650641682,-150.14,0.00029799,10]
[343474644,1732650641691,-500.0,0.00029799,10]
[343474645,1732650641701,-150.17,0.00029799,10]
[343474646,1732650641710,-150.17,0.00029799,10]
[343474647,1732650641719,-150.17,0.00029799,2]
[343474648,1732650641729,-300.224466,0.000298,12]
[343474649,1732650641739,-151.0,0.000298,16]
[343474650,1732650641748,-151.0,0.00029827,7]
[343474651,1732650641758,-151.0,0.00029827,7]
[343474652,1732650641767,-151.0,0.00029827,7]
[343474653,1732650641778,-151.0,0.00029827,7]
[343474655,1732650641787,-151.0,0.00029827,7]
[343474657,1732650641796,-151.0,0.00029827,7]
[343474659,1732650641806,-151.0,0.00029827,7]
[343474661,1732650641815,-151.0,0.00029827,7]
[343474662,1732650641824,-151.0,0.00029827,7]
[343474663,1732650641834,-215.554718,0.00029848,7]
[343474664,1732650641843,-215.554718,0.00029848,7]
[343474665,1732650641852,-215.554718,0.00029848,7]
[343474666,1732650641864,-215.554718,0.00029848,7]
[343474667,1732650641874,-215.554718,0.00029848,7]
[343474668,1732650641883,-215.554718,0.00029848,7]
[343474669,1732650641893,-215.554718,0.00029848,7]
[343474671,1732650641902,-215.554718,0.00029848,7]
[343474672,1732650641911,-215.554718,0.00029848,7]
[343474673,1732650641921,-215.554718,0.00029848,7]
[343474674,1732650641930,-215.554718,0.00029848,7]
[343474675,1732650641939,-215.554718,0.00029848,7]
[343474676,1732650641948,-215.554718,0.00029848,7]
[343474677,1732650641957,-215.554718,0.00029848,7]
[343474678,1732650641967,-215.554718,0.00029848,7]
[343474679,1732650641977,-215.554718,0.00029848,7]
[343474680,1732650641986,-215.554718,0.00029848,7]
[343474681,1732650641995,-215.554718,0.00029848,7]
[343474682,1732650642005,-215.554718,0.00029848,7]
[343474683,1732650642014,-215.554709,0.00029848,7]
[343474684,1732650642023,-151.0,0.00029848,7]
[343474685,1732650642032,-151.0,0.00029848,7]
[343474686,1732650642042,-239.795276,0.00029848,7]
[343474687,1732650642052,-151.0,0.00029848,7]
[343474688,1732650642061,-151.0,0.00029848,7]
[343474689,1732650642070,-151.0,0.00029848,7]
[343474690,1732650642079,-151.0,0.00029848,7]
[343474691,1732650642088,-151.0,0.00029848,7]
[343474692,1732650642098,-151.0,0.00029848,7]
[343474693,1732650642111,-151.0,0.00029848,7]
[343474694,1732650642120,-151.0,0.00029848,7]
[343474695,1732650642130,-151.0,0.00029848,7]
[343474696,1732650642139,-151.0,0.00029848,7]
[343474697,1732650642149,-151.0,0.00029848,7]
[343474698,1732650642159,-151.0,0.00029848,7]
[343474699,1732650642169,-151.0,0.00029848,7]
[343474700,1732650642179,-151.0,0.00029848,7]
[343474701,1732650642188,-256.438226,0.00029848,7]
[343474702,1732650642198,-151.0,0.00029848,7]
[343474703,1732650642207,-253.072352,0.00029848,7]
[343474704,1732650642217,-512.43312088,0.00029849,2]
[343474705,1732650642226,-385.28309869,0.00029849,2]
[343474706,1732650642236,-385.28309869,0.00029849,2]
[343474707,1732650642246,-295939.47032498,0.00029849,10]
[343474737,1732651339967,167.405518,0.00013973,2]
[343474739,1732651627118,-5000.0,0.00024703,2]
[343474740,1732651627141,-235.7522136,0.00024953,2]
[343474741,1732651627164,-302.66710251,0.00025,2]
[343474742,1732651627187,-300.0,0.00025062,2]
[343474743,1732651627208,-787.43567246,0.00025063,2]
[343474744,1732651653288,-3701.07979754,0.00025063,2]
[343474831,1732651838816,-553.27090062,0.00025,30]
[343474834,1732651838826,-267.2450824,0.00025063,2]
[343474836,1732651838836,-195.08598739,0.00025105,2]
[343474838,1732651838846,-312.79067075,0.00025105,2]
[343474840,1732651838858,-206.935092,0.00025127,2]
[343474842,1732651838868,-1462.86250204,0.0002515,2]
[343474845,1732651838878,-355.20138037,0.00025205,2]
[343474846,1732651838890,-300.0,0.00025207,2]
[343474848,1732651838900,-24900.0,0.00025208,2]
[343474850,1732651838909,-380.0,0.00025822,2]
[343474852,1732651838918,-164.0,0.00027,2]
[343474854,1732651838931,-162.852,0.00027184,15]
[343474856,1732651838941,-420.0,0.00027302,2]
[343474858,1732651838951,-500.0,0.00027397,3]
[343474860,1732651838961,-500.0,0.00027397,3]
[343474862,1732651838970,-500.0,0.00027397,3]
[343474864,1732651838979,-500.0,0.00027397,3]
[343474866,1732651838988,-500.0,0.00027397,3]
[343474868,1732651838999,-500.0,0.00027397,3]
[343474870,1732651839008,-500.0,0.00027397,3]
[343474872,1732651839017,-500.0,0.00027397,3]
[343474874,1732651839027,-313.12,0.00027397,3]
[343474876,1732651839036,-500.0,0.00027397,3]
[343474878,1732651839048,-219.51,0.00027397,3]
[343474880,1732651839057,-500.0,0.00027397,3]
[343474882,1732651839067,-500.0,0.0002744,3]
[343474884,1732651839076,-500.0,0.0002744,3]
[343474886,1732651839085,-553.27090062,0.00028,30]
[343474888,1732651839095,-164.0,0.00028767,2]
[343474890,1732651839105,-301.601,0.00029313,15]
[343474892,1732651839115,-252.93031416,0.00029331,2]
[343474895,1732651839126,-6128.45400789,0.00029331,2]
[343474896,1732651839137,-207.627958,0.00029335,2]
[343474898,1732651839147,-311.441938,0.00029335,2]
[343474901,1732651839161,-171.830482,0.00029335,2]
[343474903,1732651839171,-171.830482,0.00029335,2]
[343474905,1732651839180,-702.45,0.00029359,10]
[343474907,1732651839190,-500.0,0.00029367,3]
[343474909,1732651839199,-500.0,0.00029367,3]
[343474911,1732651839209,-500.0,0.00029367,3]
[343474913,1732651839220,-500.0,0.00029367,3]
[343474915,1732651839230,-500.0,0.00029367,3]
[343474917,1732651839239,-500.0,0.00029367,3]
[343474919,1732651839250,-500.0,0.00029367,3]
[343474921,1732651839259,-500.0,0.00029367,3]
[343474923,1732651839268,-500.0,0.00029367,3]
[343474925,1732651839277,-500.0,0.00029367,3]
[343474927,1732651839287,-500.0,0.00029367,3]
[343474929,1732651839296,-500.0,0.00029367,3]
[343474931,1732651839305,-500.0,0.00029368,3]
[343474933,1732651839314,-500.0,0.00029368,3]
[343474935,1732651839325,-500.0,0.00029368,3]
[343474937,1732651839334,-346.16405836,0.00029368,3]
[343474939,1732651839343,-500.0,0.00029368,3]
[343474941,1732651839353,-500.0,0.00029368,3]
[343474943,1732651839363,-611.80277328,0.00029368,3]
[343474945,1732651839373,-500.0,0.00029368,3]
[343474947,1732651839383,-430.55,0.00029368,3]
[343474949,1732651839394,-500.0,0.00029368,3]
[343474951,1732651839404,-500.0,0.00029368,3]
[343474953,1732651839414,-500.0,0.00029368,3]
[343474955,1732651839425,-500.0,0.00029368,3]
[343474957,1732651839435,-500.0,0.00029368,3]
[343474959,1732651839445,-500.0,0.00029368,3]
[343474960,1732651839455,-500.0,0.00029368,3]
[343474962,1732651839464,-500.0,0.00029368,3]
[343474964,1732651839474,-500.0,0.00029368,3]
[343474966,1732651839484,-500.0,0.00029368,3]
[343474969,1732651839494,-191.57,0.00029368,3]
[343474971,1732651839503,-500.0,0.00029368,3]
[343474973,1732651839514,-500.0,0.00029368,3]
[343474975,1732651839523,-305.16969854,0.00029368,3]
[343474977,1732651839532,-500.0,0.00029368,3]
[343474979,1732651839541,-500.0,0.00029368,3]
[343474980,1732651839550,-500.0,0.00029368,3]
[343474983,1732651839560,-500.0,0.00029368,3]
[343474985,1732651839570,-500.0,0.00029368,3]
[343474987,1732651839579,-500.0,0.00029368,3]
[343474988,1732651839588,-500.0,0.00029368,3]
[343474991,1732651839598,-208.50635062,0.00029368,3]
[343474993,1732651839607,-500.0,0.00029368,3]
[343474995,1732651839617,-494.7,0.00029368,3]
[343474997,1732651839626,-45733.22642096,0.00029369,2]
[343474999,1732651839643,-17454.44606949,0.00029369,2]
[343475097,1732651840601,-250.9536878,0.00029369,2]
[343475099,1732651840612,-1374.99,0.00029369,2]
[343475247,1732651843936,-157186.38382175,0.00029369,2]
[343475248,1732651843947,-160.93463707,0.00029373,5]
[343475249,1732651843957,-500.0,0.00029373,5]
[343475250,1732651843968,-500.96071574,0.00029373,5]
[343475251,1732651843978,-432.32858972,0.00029373,5]
[343475252,1732651843988,-514.45234079,0.00029373,5]
[343475253,1732651844114,-3000.0,0.000294,2]
[343475254,1732651844131,-6699.58771373,0.000294,7]
[343475255,1732651844144,-153.85,0.000294,31]
[343475256,1732651844155,-153.85,0.000294,31]
[343475257,1732651844166,-153.85,0.000294,31]
[343475258,1732651844176,-153.85,0.000294,31]
[343475259,1732651844186,-153.85,0.000294,31]
[343475260,1732651844197,-153.85,0.000294,31]
[343475261,1732651844207,-153.85,0.000294,31]
[343475262,1732651844217,-5619.77542,0.0002941,2]
[343475263,1732651844227,-1409.32,0.000295,2]
[343475264,1732651844237,-150.0,0.0002954,2]
[343475265,1732651844246,-150.0,0.0002954,2]
[343475266,1732651844256,-531.0,0.0002954,2]
[343475267,1732651844267,-1105.0,0.0002954,2]
[343475268,1732651844277,-2378.0,0.0002954,2]
[343475269,1732651844287,-587.0,0.00029571,2]
[343475270,1732651844296,-207.627958,0.00029702,2]
[343475271,1732651844306,-311.441938,0.00029702,2]
[343475272,1732651844316,-217.46057299,0.00029846,2]
[343475273,1732651844327,-151.0,0.00029847,7]
[343475274,1732651844336,-151.0,0.00029847,7]
[343475275,1732651844347,-151.0,0.00029847,7]
[343475276,1732651844357,-151.0,0.00029847,7]
[343475277,1732651844367,-151.0,0.00029847,7]
[343475278,1732651844377,-151.0,0.00029847,7]
[343475279,1732651844387,-151.0,0.00029847,7]
[343475280,1732651844398,-151.0,0.00029847,7]
[343475281,1732651844408,-229.413525,0.00029847,7]
[343475282,1732651844418,-256.21656044,0.00029847,2]
[343475283,1732651844427,-149929.86348598,0.00029847,10]
[343475284,1732651844440,-36952.9609852,0.00029847,10]
[343475285,1732651844451,-1321.89413322,0.00029847,10]
[343475286,1732651844462,-1827.43103927,0.00029847,10]
[343475305,1732651846749,-13412.40278222,0.00029847,10]
[343475306,1732651846762,-2750.7,0.00029847,10]
[343475307,1732652148532,159.049553,0.00013973,2]
[343475309,1732652831195,-2883.26314807,0.00024952,2]
[343475310,1732652852109,-2116.73685193,0.00024952,2]
[343475311,1732652852132,-472.4136314,0.00025204,2]
[343475312,1732652852156,-448.61,0.00027061,10]
[343475313,1732652852178,-373.84,0.00027061,10]
[343475314,1732652852204,-282.3,0.00027064,10]
[343475315,1732652852227,-1704.75031302,0.00027071,2]
[343475316,1732652854132,-618.3948137,0.00027071,2]
[343475317,1732652889439,163.984159,0.00013973,2]
[343475318,1732652929556,141664.5849298,0.000109,2]
[343475319,1732652972091,-294.17750738,0.0002201,16]
[343475377,1732653031886,-53.91984538,0.0002201,16]
[343475379,1732653031896,-153.54672734,0.00024853,2]
[343475381,1732653031906,-1997.7622626,0.00024953,2]
[343475385,1732653031944,-1332.30755651,0.00024953,2]
[343475388,1732653031953,-262.294775,0.00025716,2]
[343475391,1732653031963,-226.08525374,0.00025989,10]
[343475394,1732653031974,-81.41474626,0.00025989,10]
[343475398,1732653031984,-350.0,0.00025989,10]
[343475399,1732653031993,-291.67,0.00025989,10]
[343475401,1732653032003,-243.06,0.00025989,10]
[343475403,1732653032012,-300.0,0.00025998,2]
[343475405,1732653032022,-300.0,0.00025998,2]
[343475407,1732653032031,-7593.25525374,0.00025999,2]
[343475680,1732653038063,-202.55,0.00025989,10]
[343475681,1732653038073,-656.26578796,0.00025999,2]
[343475682,1732653038122,-390.82960902,0.00025999,2]
[343475686,1732653039708,-113404.64934928,0.00025999,2]
[343475687,1732653039717,-8801.27657634,0.00026,30]
[343475688,1732653039727,-177.08,0.00027076,2]
[343475689,1732653039737,-210.52129162,0.00027076,2]
[343475690,1732653039746,-206.9350938,0.00027079,2]
[343475691,1732653039756,-8815.53070886,0.00027086,2]
[343475692,1732653039767,-1370.0,0.00027086,2]
[343475778,1732653043299,-5123.88000003,0.00027086,2]
[343475780,1732653043312,-9590.58929111,0.00027086,2]
[343475782,1732653043322,-500.96071574,0.000271,2]
[343475784,1732653043332,-212.0816479,0.00027251,2]
[343475786,1732653043341,-860.0,0.00027397,3]
[343475788,1732653043350,-500.0,0.00027397,3]
[343475791,1732653043361,-624.54137904,0.00027397,3]
[343475793,1732653043370,-163.984159,0.00027641,2]
[343475795,1732653043379,-173.023299,0.0002776,2]
[343475797,1732653043389,-369.758682,0.0002776,2]
[343475799,1732653043398,-369.758682,0.00028107,2]
[343475801,1732653043407,-420.0,0.00028136,2]
[343475804,1732653043429,-173.023299,0.00028454,2]
[343475807,1732653043441,-369.758682,0.00028454,2]
[343475809,1732653043451,-369.758682,0.00028801,2]
[343475811,1732653043461,-173.023299,0.00029148,2]
[343475813,1732653043471,-369.758682,0.00029148,2]
[343475815,1732653043481,-162.852,0.00029255,22]
[343475817,1732653043490,-101672.36909999,0.00029269,2]
[343476030,1732653045922,-45478.69298277,0.00029269,2]
[343476032,1732653045934,-500.0,0.00029273,5]
[343476034,1732653045944,-500.0,0.00029273,5]
[343476036,1732653045954,-160.93463707,0.00029273,5]
[343476038,1732653045964,-500.0,0.00029273,5]
[343476040,1732653045974,-514.45234079,0.00029273,5]
[343476042,1732653045984,-432.32858972,0.00029273,5]
[343476044,1732653045994,-217.46057299,0.00029299,2]
[343476046,1732653046004,-256.21656044,0.000293,2]
[343476048,1732653046013,-179220.93433193,0.000293,5]
[343476050,1732653046026,-1822.6,0.000293,5]
[343476053,1732653046039,-9116.0,0.000293,5]
[343476055,1732653046050,-1074.20131336,0.000293,5]
[343476057,1732653046062,-1825.2995,0.000293,5]
[343476161,1732653558987,169.809052,0.00013973,2]
[343476163,1732654044142,-3737.45116664,0.00023729,2]
[343476164,1732654044167,-302.69733596,0.00025,2]
[343476165,1732654044192,-302.69733596,0.0002525,2]
[343476166,1732654044214,-141.22382315,0.000255,2]
[343476167,1732654048269,-161.47351281,0.000255,2]
[343476168,1732654048292,-303.02999457,0.0002575,2]
[343476169,1732654048314,-322.973279,0.0002618,2]
[343476170,1732654048336,-322.973279,0.00026865,2]
[343476171,1732654048358,-300.0,0.00027204,2]
[343476172,1732654048381,-300.0,0.00027204,2]
[343476173,1732654048412,-5209.37494273,0.00027204,2]
[343476210,1732654235257,-196.5998798,0.00026541,2]
[343476212,1732654235267,-162.853,0.00027205,15]
[343476235,1732654235405,-135.3771202,0.00027359,2]
[343476238,1732654235418,-164.6228798,0.00027359,2]
[343476240,1732654235427,-300.0,0.00027359,2]
[343476241,1732654235437,-1433.0,0.00027359,2]
[343476243,1732654235447,-610.14739342,0.0002736,2]
[343476245,1732654235459,-790.6271117,0.0002736,2]
[343476248,1732654235470,-1890.15771928,0.0002736,2]
[343476251,1732654235482,-21609.0677756,0.0002736,2]
[343476253,1732654235492,-824.16,0.00027397,3]
[343476254,1732654235502,-824.16,0.00027397,3]
[343476256,1732654235515,-824.16,0.00027397,3]
[343476258,1732654235525,-824.16,0.00027397,3]
[343476260,1732654235534,-824.16,0.00027397,3]
[343476262,1732654235544,-824.16,0.00027397,3]
[343476264,1732654235557,-824.16,0.00027397,3]
[343476265,1732654235566,-157.25379968,0.00027397,3]
[343476267,1732654235575,-500.0,0.00027397,3]
[343476269,1732654235585,-500.0,0.00027397,3]
[343476271,1732654235594,-500.0,0.00027397,3]
[343476272,1732654235603,-500.0,0.00027397,3]
[343476274,1732654235612,-500.0,0.00027397,3]
[343476276,1732654235621,-500.0,0.00027397,3]
[343476277,1732654235630,-500.0,0.00027397,3]
[343476279,1732654235640,-500.0,0.00027397,3]
[343476281,1732654235649,-511.42875569,0.00027397,3]
[343476283,1732654235658,-322.973279,0.0002755,2]
[343476284,1732654235668,-451.89796161,0.00028345,2]
[343476286,1732654235677,-3303.74284037,0.00028564,2]
[343476492,1732654240020,-2381.85,0.00028564,2]
[343476504,1732654240134,-282.306,0.00028564,2]
[343476819,1732654242974,-471.99335163,0.00028564,2]
[343476821,1732654242985,-451.89796161,0.00028694,2]
[343476823,1732654242995,-500.0,0.00028701,3]
[343476825,1732654243006,-500.0,0.00028701,3]
[343476827,1732654243015,-6439.89219201,0.00028936,2]
[343476829,1732654243025,-451.89796161,0.00029043,2]
[343476832,1732654243035,-643.7,0.0002919,3]
[343476835,1732654243045,-257.9,0.0002919,10]
[343476837,1732654243057,-214.92,0.0002919,10]
[343476840,1732654243067,-179.1,0.0002919,10]
[343476842,1732654243077,-266.32,0.0002919,10]
[343476843,1732654243087,-500.0,0.00029198,3]
[343476845,1732654243096,-500.0,0.00029199,3]
[343476846,1732654243105,-430.55,0.00029199,3]
[343476847,1732654243116,-500.0,0.00029199,3]
[343476848,1732654243126,-505.49167327,0.00029199,3]
[343476849,1732654243135,-500.0,0.00029199,3]
[343476850,1732654243145,-500.0,0.00029199,3]
[343476851,1732654243154,-500.0,0.00029199,3]
[343476852,1732654243164,-500.0,0.00029199,3]
[343476853,1732654243174,-500.0,0.00029199,3]
[343476854,1732654243184,-285.0594064,0.00029199,3]
[343476855,1732654243193,-30864.72805632,0.000292,2]
[343476856,1732654243205,-4264.67497155,0.000292,2]
[343476857,1732654243217,-186870.59697213,0.000292,2]
[343476858,1732654243227,-39107.13489851,0.000292,30]
[343476859,1732654243237,-177.83227327,0.00029249,2]
[343476860,1732654243246,-824.16,0.00029268,3]
[343476862,1732654243256,-824.16,0.00029268,3]
[343476863,1732654243266,-824.16,0.00029268,3]
[343476865,1732654243275,-824.16,0.00029268,3]
[343476867,1732654243285,-824.16,0.00029268,3]
[343476870,1732654243296,-824.16,0.00029268,3]
[343476871,1732654243309,-824.16,0.00029268,3]
[343476874,1732654243323,-824.16,0.00029268,3]
[343476876,1732654243333,-500.0,0.00029273,5]
[343476878,1732654243343,-482.26155982,0.00029273,5]
[343476880,1732654243352,-824.16,0.00029299,3]
[343476882,1732654243362,-824.16,0.00029299,3]
[343476884,1732654243371,-824.16,0.00029299,3]
[343476886,1732654243380,-824.16,0.00029299,3]
[343476888,1732654243391,-824.16,0.00029299,3]
[343476890,1732654243400,-824.16,0.00029299,3]
[343476892,1732654243409,-824.16,0.00029299,3]
[343476894,1732654243418,-824.16,0.00029299,3]
[343476896,1732654243428,-824.34471717,0.00029299,3]
[343476898,1732654243437,-256.21656044,0.000293,2]
[343476900,1732654243447,-662815.93623753,0.000293,5]
[343477156,1732654245998,-903.9,0.000293,5]
[343477457,1732654261359,162.906751,0.00013973,2]
[343477459,1732655024188,167.678983,0.00013973,2]
[343477464,1732655234291,-235.7522136,0.00023742,2]
[343477465,1732655234315,-5000.0,0.00023982,2]
[343477466,1732655234338,-167.678983,0.00024224,2]
[343477467,1732655234363,-212.0816479,0.00026891,2]
[343477468,1732655234387,-300.0,0.00026896,2]
[343477469,1732655234410,-300.0,0.00026896,2]
[343477470,1732655234432,-439.73914602,0.00026896,2]
[343477471,1732655245141,-2433.26085398,0.00026896,2]
[343477472,1732655245163,-1346.11792998,0.00026899,2]
[343477525,1732655432198,-233.5582016,0.00026206,2]
[343477527,1732655432209,-300.0,0.00026898,2]
[343477529,1732655432219,-23553.88207002,0.00026899,2]
[343477531,1732655432230,-250.1379852,0.00027397,2]
[343477533,1732655432240,-500.0,0.00027397,3]
[343477535,1732655432250,-388.75690732,0.00027397,3]
[343477537,1732655432260,-500.0,0.00027397,3]
[343477539,1732655432270,-500.0,0.00027397,3]
[343477540,1732655432279,-500.0,0.00027397,3]
[343477542,1732655432289,-500.0,0.00027397,3]
[343477544,1732655432299,-500.0,0.00027397,3]
[343477546,1732655432308,-577.10246915,0.00027397,3]
[343477548,1732655432319,-500.0,0.00027397,3]
[343477550,1732655432329,-500.0,0.00027397,3]
[343477552,1732655432339,-500.0,0.00027397,3]
[343477554,1732655432348,-500.0,0.00027397,3]
[343477556,1732655432358,-539.00858895,0.00027397,3]
[343477557,1732655432368,-500.0,0.00027397,3]
[343477558,1732655432377,-500.0,0.00027397,3]
[343477559,1732655432387,-500.0,0.00027397,2]
[343477560,1732655432397,-619.62,0.00027397,3]
[343477561,1732655432407,-500.0,0.00027397,3]
[343477562,1732655432417,-500.0,0.00027397,3]
[343477563,1732655432426,-483.50316313,0.00027397,3]
[343477564,1732655432435,-500.0,0.00027397,3]
[343477565,1732655432445,-500.0,0.00027397,3]
[343477566,1732655432456,-500.0,0.00027397,3]
[343477567,1732655432466,-500.0,0.00027397,3]
[343477568,1732655432476,-500.0,0.00027397,3]
[343477569,1732655432485,-500.0,0.00027397,3]
[343477570,1732655432495,-500.0,0.00027397,3]
[343477571,1732655432504,-493.26,0.00027397,3]
[343477572,1732655432513,-500.0,0.00027397,3]
[343477573,1732655432523,-500.0,0.00027397,3]
[343477574,1732655432534,-500.0,0.00027397,3]
[343477575,1732655432545,-500.0,0.00027397,3]
[343477576,1732655432555,-500.0,0.00027397,3]
[343477577,1732655432565,-500.0,0.00027397,3]
[343477578,1732655432575,-500.0,0.00027397,3]
[343477579,1732655432586,-500.0,0.00027397,3]
[343477580,1732655432595,-500.0,0.00027397,3]
[343477581,1732655432606,-500.0,0.00027397,3]
[343477582,1732655432615,-500.0,0.00027759,3]
[343477583,1732655432625,-500.0,0.00027759,3]
[343477584,1732655432635,-500.0,0.00027759,3]
[343477585,1732655432645,-157.149933,0.0002776,2]
[343477586,1732655432657,-172.085725,0.0002776,2]
[343477587,1732655432666,-369.758682,0.0002776,2]
[343477588,1732655432677,-173.0233,0.0002776,2]
[343477589,1732655432686,-533.359544,0.0002776,2]
[343477590,1732655432696,-266.679772,0.0002776,2]
[343477591,1732655432706,-6050.34278121,0.0002776,2]
[343477592,1732655432716,-157.149933,0.00028107,2]
[343477593,1732655432727,-369.758682,0.00028107,2]
[343477594,1732655432737,-533.359544,0.00028107,2]
[343477595,1732655432747,-266.679772,0.00028107,2]
[343477597,1732655432757,-157.149933,0.00028454,2]
[343477598,1732655432767,-172.085725,0.00028454,2]
[343477599,1732655432776,-369.758682,0.00028454,2]
[343477601,1732655432786,-173.0233,0.00028454,2]